[Event "*** Titled Tuesday Blitz"]
[Site "Chess.com"]
[Date "2020.10.20"]
[Round "1"]
[White "Radzio1987"]
[Black "Oligan22"]
[Result "1-0"]
[WhiteElo "2832"]
[BlackElo "2416"]
[TimeControl "180+1"]
[EndTime "10:07:10 PDT"]
[Termination "Radzio1987 won on time"]

1. c4 {[%clk 0:02:58.5]} 1... e5 {[%clk 0:02:59.9]} 2. Nc3 {[%clk 0:02:57.5]}
2... d6 {[%clk 0:03:00.2]} 3. g3 {[%clk 0:02:55.6]} 3... f5 {[%clk 0:03:00.2]}
4. Bg2 {[%clk 0:02:55.5]} 4... Nf6 {[%clk 0:03:00]} 5. d4 {[%clk 0:02:55.6]}
5... e4 {[%clk 0:02:52.7]} 6. f3 {[%clk 0:02:51.7]} 6... exf3 {[%clk 0:02:40.2]}
7. Nxf3 {[%clk 0:02:52.6]} 7... Be7 {[%clk 0:02:36.3]} 8. O-O {[%clk 0:02:52.8]}
8... O-O {[%clk 0:02:36.5]} 9. d5 {[%clk 0:02:32.2]} 9... Nbd7 {[%clk
0:02:28.3]} 10. Nd4 {[%clk 0:02:30.5]} 10... Ne5 {[%clk 0:02:23.3]} 11. Nxf5
{[%clk 0:01:56.8]} 11... Nxc4 {[%clk 0:02:23.3]} 12. Qd4 {[%clk 0:01:38.7]}
12... Ne5 {[%clk 0:02:19.2]} 13. e4 {[%clk 0:01:32.7]} 13... c5 {[%clk
0:02:06.3]} 14. dxc6 {[%clk 0:01:30.9]} 14... bxc6 {[%clk 0:02:06.7]} 15. Bf4
{[%clk 0:01:18.2]} 15... Qc7 {[%clk 0:01:27.6]} 16. Nxe7+ {[%clk 0:01:13.6]}
16... Qxe7 {[%clk 0:01:27.2]} 17. Rad1 {[%clk 0:01:14.2]} 17... Ne8 {[%clk
0:01:04.8]} 18. Bxe5 {[%clk 0:01:12.3]} 18... Rxf1+ {[%clk 0:00:58.6]} 19. Bxf1
{[%clk 0:01:12.1]} 19... Qxe5 {[%clk 0:00:41.4]} 20. Qxe5 {[%clk 0:01:09.6]}
20... dxe5 {[%clk 0:00:41.3]} 21. Rd8 {[%clk 0:00:58.1]} 21... Bb7 {[%clk
0:00:39.8]} 22. Rd7 {[%clk 0:00:55.2]} 22... Bc8 {[%clk 0:00:29.8]} 23. Re7
{[%clk 0:00:55.1]} 23... Nd6 {[%clk 0:00:24.8]} 24. Rxe5 {[%clk 0:00:54.2]}
24... Rb8 {[%clk 0:00:25.1]} 25. b3 {[%clk 0:00:54.1]} 25... Kf7 {[%clk
0:00:15.4]} 26. Rc5 {[%clk 0:00:53.1]} 26... Bb7 {[%clk 0:00:15.8]} 27. e5
{[%clk 0:00:53]} 27... Nf5 {[%clk 0:00:14.8]} 28. Bc4+ {[%clk 0:00:53]} 28...
Ke7 {[%clk 0:00:15]} 29. Ra5 {[%clk 0:00:53.1]} 29... a6 {[%clk 0:00:14.5]} 30.
Kf2 {[%clk 0:00:53.2]} 30... Rd8 {[%clk 0:00:13.4]} 31. Ne4 {[%clk 0:00:51.9]}
31... Nd4 {[%clk 0:00:09.3]} 32. Nc5 {[%clk 0:00:50.6]} 32... Bc8 {[%clk
0:00:09.1]} 33. Bxa6 {[%clk 0:00:50.1]} 33... Bxa6 {[%clk 0:00:06]} 34. Rxa6
{[%clk 0:00:51]} 34... Rd5 {[%clk 0:00:04.3]} 35. Ra7+ {[%clk 0:00:51.3]} 35...
Ke8 {[%clk 0:00:04.2]} 36. Nd3 {[%clk 0:00:38.7]} 36... Ne6 {[%clk 0:00:04.2]}
37. Ke3 {[%clk 0:00:37.7]} 37... c5 {[%clk 0:00:02.8]} 38. a4 {[%clk 0:00:37]}
38... c4 {[%clk 0:00:02]} 39. bxc4 {[%clk 0:00:36.8]} 39... Rd4 {[%clk
0:00:02.7]} 40. c5 {[%clk 0:00:34.4]} 40... Rc4 {[%clk 0:00:01.6]} 41. a5 {[%clk
0:00:34.6]} 1-0

[Event "*** Titled Tuesday Blitz"]
[Site "Chess.com"]
[Date "2020.10.20"]
[Round "1"]
[White "Sueetin"]
[Black "wannabe2700"]
[Result "0-1"]
[WhiteElo "2360"]
[BlackElo "2719"]
[TimeControl "180+1"]
[EndTime "10:07:12 PDT"]
[Termination "wannabe2700 won on time"]

1. d4 {[%clk 0:03:00.9]} 1... f5 {[%clk 0:02:59.7]} 2. Nc3 {[%clk 0:03:00.4]}
2... Nf6 {[%clk 0:02:59.2]} 3. Bg5 {[%clk 0:03:00.3]} 3... d5 {[%clk 0:02:58.5]}
4. Bxf6 {[%clk 0:02:59.5]} 4... exf6 {[%clk 0:02:57.9]} 5. e3 {[%clk 0:02:59.1]}
5... Be6 {[%clk 0:02:57.5]} 6. Nge2 {[%clk 0:02:53.9]} 6... Qd7 {[%clk
0:02:54.4]} 7. Nf4 {[%clk 0:02:51.4]} 7... Bf7 {[%clk 0:02:54.3]} 8. h4 {[%clk
0:02:50.9]} 8... h5 {[%clk 0:02:53.5]} 9. Bd3 {[%clk 0:02:44.3]} 9... Nc6 {[%clk
0:02:49.9]} 10. Qf3 {[%clk 0:02:34.1]} 10... Nb4 {[%clk 0:02:41.8]} 11. a3
{[%clk 0:02:28]} 11... Nxd3+ {[%clk 0:02:41]} 12. cxd3 {[%clk 0:02:28.9]} 12...
O-O-O {[%clk 0:02:39]} 13. O-O-O {[%clk 0:01:59.3]} 13... g5 {[%clk 0:02:37.1]}
14. Nfe2 {[%clk 0:01:48.1]} 14... Bd6 {[%clk 0:01:40.5]} 15. g3 {[%clk
0:01:48.1]} 15... c6 {[%clk 0:01:36.8]} 16. Kb1 {[%clk 0:01:47.9]} 16... Kb8
{[%clk 0:01:30.1]} 17. Rc1 {[%clk 0:01:48.1]} 17... Rh6 {[%clk 0:01:25.7]} 18.
Na4 {[%clk 0:01:42.9]} 18... b6 {[%clk 0:01:22.4]} 19. Rc2 {[%clk 0:01:19.4]}
19... Rc8 {[%clk 0:01:17.2]} 20. Rhc1 {[%clk 0:01:02.1]} 20... Be6 {[%clk
0:01:13.6]} 21. Nac3 {[%clk 0:00:35.2]} 21... f4 {[%clk 0:01:09.8]} 22. exf4
{[%clk 0:00:31.6]} 22... Bg4 {[%clk 0:01:08.4]} 23. Qe3 {[%clk 0:00:31.2]} 23...
Re8 {[%clk 0:01:04.4]} 24. Qd2 {[%clk 0:00:31.3]} 24... gxh4 {[%clk 0:01:04.5]}
25. gxh4 {[%clk 0:00:24.9]} 25... Bf3 {[%clk 0:01:00.3]} 26. Ng3 {[%clk
0:00:21.4]} 26... Qg4 {[%clk 0:00:59.1]} 27. Re1 {[%clk 0:00:19.2]} 27... Rhh8
{[%clk 0:00:56.7]} 28. Nce2 {[%clk 0:00:14.7]} 28... Qxh4 {[%clk 0:00:51.9]} 29.
Rxc6 {[%clk 0:00:13.6]} 29... Bxf4 {[%clk 0:00:30.9]} 30. Qc3 {[%clk 0:00:10.2]}
30... Qg4 {[%clk 0:00:16.4]} 31. Ka2 {[%clk 0:00:08]} 31... h4 {[%clk
0:00:15.9]} 32. Rc1 {[%clk 0:00:04.5]} 32... Bxc1 {[%clk 0:00:14.9]} 33. Qxc1
{[%clk 0:00:01.6]} 33... hxg3 {[%clk 0:00:14.9]} 0-1

[Event "*** Titled Tuesday Blitz"]
[Site "Chess.com"]
[Date "2020.10.20"]
[Round "1"]
[White "grzechu96"]
[Black "GuerrieroFromLevant"]
[Result "1-0"]
[WhiteElo "2692"]
[BlackElo "2342"]
[TimeControl "180+1"]
[EndTime "10:07:13 PDT"]
[Termination "grzechu96 won by resignation"]

1. e4 {[%clk 0:03:00.9]} 1... e6 {[%clk 0:03:00.1]} 2. d4 {[%clk 0:03:00.6]}
2... d5 {[%clk 0:03:00.1]} 3. Nc3 {[%clk 0:03:01.1]} 3... Nf6 {[%clk 0:02:59.9]}
4. Bg5 {[%clk 0:02:59.5]} 4... h6 {[%clk 0:02:59.7]} 5. Bxf6 {[%clk 0:02:57.7]}
5... Qxf6 {[%clk 0:03:00.6]} 6. exd5 {[%clk 0:02:57]} 6... Bb4 {[%clk
0:03:00.7]} 7. dxe6 {[%clk 0:02:56.6]} 7... Bxe6 {[%clk 0:03:00]} 8. Nf3 {[%clk
0:02:47.4]} 8... O-O {[%clk 0:02:56.8]} 9. Be2 {[%clk 0:02:32.1]} 9... Rd8
{[%clk 0:02:46.1]} 10. O-O {[%clk 0:02:32.1]} 10... Bxc3 {[%clk 0:02:46]} 11.
bxc3 {[%clk 0:02:32.1]} 11... c5 {[%clk 0:02:46.9]} 12. Qb1 {[%clk 0:02:26.8]}
12... Nc6 {[%clk 0:02:40.6]} 13. Qxb7 {[%clk 0:02:23]} 13... Bd5 {[%clk
0:02:40.6]} 14. Qa6 {[%clk 0:02:07.2]} 14... Rab8 {[%clk 0:02:30.3]} 15. Rab1
{[%clk 0:01:35]} 15... Rxb1 {[%clk 0:02:24.7]} 16. Rxb1 {[%clk 0:01:35.9]} 16...
cxd4 {[%clk 0:02:24.9]} 17. cxd4 {[%clk 0:01:33.9]} 17... Bxf3 {[%clk
0:02:22.5]} 18. Bxf3 {[%clk 0:01:34.1]} 18... Nxd4 {[%clk 0:02:22.8]} 19. Qxf6
{[%clk 0:01:34]} 19... gxf6 {[%clk 0:02:23.7]} 20. Bd1 {[%clk 0:01:10.7]} 20...
Nb5 {[%clk 0:02:19.3]} 21. Bg4 {[%clk 0:00:49.3]} 21... Nc3 {[%clk 0:02:18.1]}
22. Ra1 {[%clk 0:00:49.2]} 22... Rb8 {[%clk 0:01:58.8]} 23. Bf5 {[%clk
0:00:45.3]} 23... a5 {[%clk 0:01:55.9]} 24. Kf1 {[%clk 0:00:35.6]} 24... a4
{[%clk 0:01:53.2]} 25. a3 {[%clk 0:00:34.5]} 25... Rf8 {[%clk 0:01:27.9]} 26.
Ke1 {[%clk 0:00:30.7]} 26... Rd8 {[%clk 0:01:28.1]} 27. Bd3 {[%clk 0:00:30.1]}
27... Kf8 {[%clk 0:01:27.3]} 28. Kd2 {[%clk 0:00:30.1]} 28... Ne4+ {[%clk
0:01:27.7]} 29. Ke3 {[%clk 0:00:28.9]} 29... Nc3 {[%clk 0:01:28.1]} 30. g3
{[%clk 0:00:24.1]} 30... Ke7 {[%clk 0:01:19.2]} 31. f3 {[%clk 0:00:22.8]} 31...
Rd5 {[%clk 0:01:14.4]} 32. Kd2 {[%clk 0:00:22.7]} 32... Nb5 {[%clk 0:01:13.4]}
33. c4 {[%clk 0:00:21.2]} 33... Nd4 {[%clk 0:01:12.1]} 34. cxd5 {[%clk
0:00:20.6]} 34... Nb3+ {[%clk 0:01:12.6]} 35. Kc3 {[%clk 0:00:19.8]} 35... Nxa1
{[%clk 0:01:13.5]} 36. Bb5 {[%clk 0:00:18.5]} 36... Nb3 {[%clk 0:01:13.6]} 37.
Bxa4 {[%clk 0:00:18.5]} 37... Nc5 {[%clk 0:01:14.5]} 38. Bb3 {[%clk 0:00:15.6]}
38... Kd6 {[%clk 0:01:15.4]} 39. a4 {[%clk 0:00:13.3]} 39... f5 {[%clk
0:01:15.6]} 40. a5 {[%clk 0:00:12.7]} 40... Na6 {[%clk 0:01:13.8]} 41. Bc4
{[%clk 0:00:12.3]} 41... Nc7 {[%clk 0:01:14]} 42. a6 {[%clk 0:00:12.1]} 42...
Na8 {[%clk 0:01:14.2]} 43. Kb4 {[%clk 0:00:10.6]} 43... Nb6 {[%clk 0:01:14.3]}
44. Kb5 {[%clk 0:00:10.7]} 44... Na8 {[%clk 0:01:14.9]} 45. a7 {[%clk
0:00:10.2]} 45... f4 {[%clk 0:01:15]} 46. gxf4 {[%clk 0:00:09.9]} 46... f5
{[%clk 0:01:11.9]} 47. Ka6 {[%clk 0:00:08.9]} 47... Kc7 {[%clk 0:01:09.9]} 48.
Bb5 {[%clk 0:00:08.6]} 48... Nb6 {[%clk 0:00:59.3]} 49. Bc6 {[%clk 0:00:09.5]}
49... h5 {[%clk 0:00:58.9]} 50. a8=Q {[%clk 0:00:08.9]} 50... Nxa8 {[%clk
0:00:58.9]} 51. Bxa8 {[%clk 0:00:09.8]} 51... Kd6 {[%clk 0:00:59.8]} 52. Kb5
{[%clk 0:00:10.2]} 52... h4 {[%clk 0:01:00.7]} 53. Kc4 {[%clk 0:00:10]} 1-0

[Event "*** Titled Tuesday Blitz"]
[Site "Chess.com"]
[Date "2020.10.20"]
[Round "1"]
[White "BJthechessgod"]
[Black "sergeikim"]
[Result "0-1"]
[WhiteElo "2204"]
[BlackElo "2535"]
[TimeControl "180+1"]
[EndTime "10:07:13 PDT"]
[Termination "sergeikim won by checkmate"]

1. e4 {[%clk 0:02:58.6]} 1... e5 {[%clk 0:02:59.6]} 2. Nf3 {[%clk 0:02:58.1]}
2... Nc6 {[%clk 0:02:59.5]} 3. Bc4 {[%clk 0:02:55.8]} 3... Bc5 {[%clk
0:02:58.1]} 4. b4 {[%clk 0:02:53.4]} 4... Bxb4 {[%clk 0:02:57.2]} 5. c3 {[%clk
0:02:52.7]} 5... Ba5 {[%clk 0:02:58.1]} 6. d4 {[%clk 0:02:46.8]} 6... d6 {[%clk
0:02:57.1]} 7. O-O {[%clk 0:02:38.1]} 7... Bb6 {[%clk 0:02:56.1]} 8. dxe5 {[%clk
0:02:28.5]} 8... dxe5 {[%clk 0:02:55.8]} 9. Qxd8+ {[%clk 0:02:23.8]} 9... Nxd8
{[%clk 0:02:55.5]} 10. Nxe5 {[%clk 0:02:23.7]} 10... Be6 {[%clk 0:02:54.2]} 11.
Nd2 {[%clk 0:02:18.9]} 11... Nf6 {[%clk 0:02:53.3]} 12. Ba3 {[%clk 0:02:11.3]}
12... Bxc4 {[%clk 0:02:47.1]} 13. Nexc4 {[%clk 0:02:10.3]} 13... Ne6 {[%clk
0:02:46.4]} 14. e5 {[%clk 0:01:58.9]} 14... Ng4 {[%clk 0:02:36.2]} 15. h3 {[%clk
0:01:55.4]} 15... Nh6 {[%clk 0:02:31.7]} 16. g4 {[%clk 0:01:53.9]} 16... O-O-O
{[%clk 0:02:29]} 17. Rad1 {[%clk 0:01:42.2]} 17... Bc5 {[%clk 0:02:21.9]} 18.
Bxc5 {[%clk 0:01:37.5]} 18... Nxc5 {[%clk 0:02:20.8]} 19. f4 {[%clk 0:01:38]}
19... Rd3 {[%clk 0:02:10.4]} 20. Rf3 {[%clk 0:01:35.8]} 20... Rhd8 {[%clk
0:02:07.1]} 21. Rdf1 {[%clk 0:01:13.5]} 21... b5 {[%clk 0:02:01.9]} 22. Nb3
{[%clk 0:00:38.5]} 22... Nxb3 {[%clk 0:01:59]} 23. Nd6+ {[%clk 0:00:38.5]} 23...
R3xd6 {[%clk 0:01:50.2]} 24. exd6 {[%clk 0:00:38.3]} 24... Nd2 {[%clk
0:01:49.6]} 25. dxc7 {[%clk 0:00:26.4]} 25... Nxf3+ {[%clk 0:01:44]} 26. Rxf3
{[%clk 0:00:27.3]} 26... Kxc7 {[%clk 0:01:43.6]} 27. Re3 {[%clk 0:00:27.7]}
27... f6 {[%clk 0:01:40.9]} 28. Re7+ {[%clk 0:00:27.8]} 28... Rd7 {[%clk
0:01:40.8]} 29. Re8 {[%clk 0:00:28.4]} 29... Nf7 {[%clk 0:01:39.7]} 30. Rg8
{[%clk 0:00:28.4]} 30... Nd6 {[%clk 0:01:38.6]} 31. Rh8 {[%clk 0:00:28.8]} 31...
h6 {[%clk 0:01:37.7]} 32. f5 {[%clk 0:00:27.9]} 32... Ne4 {[%clk 0:01:36.3]} 33.
Ra8 {[%clk 0:00:26.5]} 33... Kb7 {[%clk 0:01:34.6]} 34. Re8 {[%clk 0:00:23.2]}
34... Nxc3 {[%clk 0:01:33.9]} 35. a3 {[%clk 0:00:23]} 35... a5 {[%clk
0:01:30.9]} 36. Re3 {[%clk 0:00:18.5]} 36... b4 {[%clk 0:01:29.1]} 37. axb4
{[%clk 0:00:19.4]} 37... axb4 {[%clk 0:01:29]} 38. h4 {[%clk 0:00:20.3]} 38...
Kb6 {[%clk 0:01:25.9]} 39. Rg3 {[%clk 0:00:19.2]} 39... Kb5 {[%clk 0:01:24.9]}
40. g5 {[%clk 0:00:20.1]} 40... fxg5 {[%clk 0:01:22.7]} 41. hxg5 {[%clk
0:00:21]} 41... hxg5 {[%clk 0:01:22.6]} 42. Rxg5 {[%clk 0:00:21.9]} 42... Ka4
{[%clk 0:01:20.8]} 43. Rg4 {[%clk 0:00:21]} 43... Ka3 {[%clk 0:01:19.6]} 44. Rg3
{[%clk 0:00:19.5]} 44... Rc7 {[%clk 0:01:15.5]} 45. Kf2 {[%clk 0:00:19.3]} 45...
b3 {[%clk 0:01:14.7]} 46. Ke1 {[%clk 0:00:17.8]} 46... b2 {[%clk 0:01:13.4]} 47.
Kd2 {[%clk 0:00:18.2]} 47... Kb3 {[%clk 0:01:10.1]} 48. Rg6 {[%clk 0:00:12.9]}
48... Rb7 {[%clk 0:01:03]} 49. Rc6 {[%clk 0:00:11.8]} 49... Ne4+ {[%clk
0:01:00.8]} 50. Ke3 {[%clk 0:00:10.7]} 50... b1=Q {[%clk 0:00:59.9]} 51. Re6
{[%clk 0:00:10]} 51... Nc3 {[%clk 0:00:56.6]} 52. Kd4 {[%clk 0:00:07.2]} 52...
Qd1+ {[%clk 0:00:51]} 53. Kc5 {[%clk 0:00:07.2]} 53... Qd5# {[%clk 0:00:49.7]}
0-1

[Event "*** Titled Tuesday Blitz"]
[Site "Chess.com"]
[Date "2020.10.20"]
[Round "1"]
[White "FontVella8"]
[Black "ChessArchitect64"]
[Result "1-0"]
[WhiteElo "2480"]
[BlackElo "2037"]
[TimeControl "180+1"]
[EndTime "10:07:13 PDT"]
[Termination "FontVella8 won by resignation"]

1. e4 {[%clk 0:02:55.1]} 1... c5 {[%clk 0:02:58.9]} 2. Nf3 {[%clk 0:02:55]} 2...
d6 {[%clk 0:02:57.5]} 3. d4 {[%clk 0:02:48.1]} 3... cxd4 {[%clk 0:02:57.3]} 4.
Qxd4 {[%clk 0:02:48.5]} 4... Nc6 {[%clk 0:02:52.1]} 5. Qe3 {[%clk 0:02:48.7]}
5... Nf6 {[%clk 0:02:52]} 6. Be2 {[%clk 0:02:49]} 6... e6 {[%clk 0:02:51.8]} 7.
c4 {[%clk 0:02:49.1]} 7... Be7 {[%clk 0:02:51.9]} 8. Nc3 {[%clk 0:02:49.1]} 8...
O-O {[%clk 0:02:51.9]} 9. O-O {[%clk 0:02:49.3]} 9... Qb6 {[%clk 0:02:41.1]} 10.
Qxb6 {[%clk 0:02:38.4]} 10... axb6 {[%clk 0:02:40.5]} 11. Be3 {[%clk 0:02:39]}
11... Nd7 {[%clk 0:02:40.6]} 12. Rab1 {[%clk 0:02:17.9]} 12... Rd8 {[%clk
0:02:32]} 13. Rfd1 {[%clk 0:02:16.2]} 13... Nc5 {[%clk 0:02:09.1]} 14. b4 {[%clk
0:01:36.9]} 14... Na4 {[%clk 0:01:24.2]} 15. Nxa4 {[%clk 0:01:36.5]} 15... Rxa4
{[%clk 0:01:23.7]} 16. Bxb6 {[%clk 0:01:34.1]} 16... Re8 {[%clk 0:01:23.7]} 17.
b5 {[%clk 0:01:31.9]} 17... Ne5 {[%clk 0:01:12.9]} 18. Nxe5 {[%clk 0:01:22.2]}
18... dxe5 {[%clk 0:01:12.7]} 19. Rb2 {[%clk 0:01:16.7]} 19... Ba3 {[%clk
0:01:07.4]} 20. Rbd2 {[%clk 0:01:14.3]} 20... Be7 {[%clk 0:01:04.6]} 21. f3
{[%clk 0:01:10.1]} 21... f6 {[%clk 0:01:04]} 22. c5 {[%clk 0:00:54.6]} 22... Kf7
{[%clk 0:01:03.5]} 23. Rc1 {[%clk 0:00:54.9]} 23... f5 {[%clk 0:00:55.3]} 24.
Rc4 {[%clk 0:00:47.2]} 24... Rxc4 {[%clk 0:00:50.5]} 25. Bxc4 {[%clk 0:00:48.1]}
25... Bg5 {[%clk 0:00:43.7]} 26. Re2 {[%clk 0:00:48.1]} 26... fxe4 {[%clk
0:00:39.8]} 27. Rxe4 {[%clk 0:00:44.6]} 27... Bf6 {[%clk 0:00:36.4]} 28. Kf1
{[%clk 0:00:39.5]} 28... Bd7 {[%clk 0:00:36]} 29. a4 {[%clk 0:00:37.2]} 29...
Ra8 {[%clk 0:00:35.8]} 30. Bb3 {[%clk 0:00:37.3]} 30... Ke7 {[%clk 0:00:19.8]}
31. Rc4 {[%clk 0:00:37.2]} 31... Rc8 {[%clk 0:00:17.8]} 32. Bc2 {[%clk
0:00:36.5]} 32... h6 {[%clk 0:00:17.1]} 33. Be4 {[%clk 0:00:36.5]} 33... Rb8
{[%clk 0:00:14.9]} 34. Bc7 {[%clk 0:00:36.7]} 34... Rc8 {[%clk 0:00:15.1]} 35.
Bd6+ {[%clk 0:00:37]} 35... Ke8 {[%clk 0:00:15.1]} 36. Bxb7 {[%clk 0:00:37.6]}
36... Rd8 {[%clk 0:00:15.5]} 37. Bc7 {[%clk 0:00:34.7]} 37... Ke7 {[%clk
0:00:13.8]} 38. Bxd8+ {[%clk 0:00:34.8]} 38... Kxd8 {[%clk 0:00:14.4]} 39. c6
{[%clk 0:00:35.5]} 39... Bc8 {[%clk 0:00:14.7]} 40. c7+ {[%clk 0:00:33.7]} 40...
Kd7 {[%clk 0:00:14.5]} 41. Bxc8+ {[%clk 0:00:34.3]} 41... Kxc8 {[%clk 0:00:15]}
42. b6 {[%clk 0:00:35]} 42... Be7 {[%clk 0:00:14.5]} 43. b7+ {[%clk 0:00:35.2]}
1-0

[Event "*** Titled Tuesday Blitz"]
[Site "Chess.com"]
[Date "2020.10.20"]
[Round "1"]
[White "banane_verte"]
[Black "Infernal_XaM"]
[Result "0-1"]
[WhiteElo "2424"]
[BlackElo "2859"]
[TimeControl "180+1"]
[EndTime "10:07:14 PDT"]
[Termination "Infernal_XaM won by resignation"]

1. e4 {[%clk 0:03:00.9]} 1... e5 {[%clk 0:02:59.7]} 2. Nf3 {[%clk 0:03:00.5]}
2... Nc6 {[%clk 0:03:00]} 3. Bc4 {[%clk 0:02:57.8]} 3... h6 {[%clk 0:02:59.4]}
4. d4 {[%clk 0:02:56.5]} 4... exd4 {[%clk 0:02:56.3]} 5. Nxd4 {[%clk 0:02:57.4]}
5... Ne5 {[%clk 0:02:53.1]} 6. Be2 {[%clk 0:02:52.8]} 6... Bc5 {[%clk
0:02:50.3]} 7. O-O {[%clk 0:02:51]} 7... d6 {[%clk 0:02:50.1]} 8. Nc3 {[%clk
0:02:42.2]} 8... Nf6 {[%clk 0:02:47.9]} 9. h3 {[%clk 0:02:37.8]} 9... O-O {[%clk
0:02:47.1]} 10. Be3 {[%clk 0:02:38.2]} 10... Re8 {[%clk 0:02:47.5]} 11. f4
{[%clk 0:02:32.5]} 11... Ng6 {[%clk 0:02:33]} 12. Bd3 {[%clk 0:02:19]} 12... Bd7
{[%clk 0:02:30.2]} 13. Qd2 {[%clk 0:02:14.2]} 13... b5 {[%clk 0:02:15.6]} 14.
Ndxb5 {[%clk 0:01:50.6]} 14... Bxb5 {[%clk 0:01:59.5]} 15. Bxb5 {[%clk
0:01:46.2]} 15... Nxe4 {[%clk 0:01:54.7]} 16. Nxe4 {[%clk 0:01:25.8]} 16... Rxe4
{[%clk 0:01:54.3]} 17. Bxc5 {[%clk 0:01:26.5]} 17... dxc5 {[%clk 0:01:54.7]} 18.
Qxd8+ {[%clk 0:01:01.3]} 18... Rxd8 {[%clk 0:01:53.7]} 19. Bd3 {[%clk
0:01:02.2]} 19... Rxf4 {[%clk 0:01:43.1]} 20. Bxg6 {[%clk 0:01:02]} 20... Rxf1+
{[%clk 0:01:42.5]} 21. Kxf1 {[%clk 0:01:01.2]} 21... fxg6 {[%clk 0:01:43.4]} 22.
Ke2 {[%clk 0:01:01.3]} 22... Kf7 {[%clk 0:01:41.2]} 23. Rf1+ {[%clk 0:00:51]}
23... Ke6 {[%clk 0:01:41.5]} 24. Rf4 {[%clk 0:00:51.1]} 24... Rd4 {[%clk
0:01:39.9]} 25. Rf8 {[%clk 0:00:51.1]} 25... Ra4 {[%clk 0:01:23.8]} 26. a3
{[%clk 0:00:51]} 26... c4 {[%clk 0:01:24]} 27. Rg8 {[%clk 0:00:42.4]} 27... c3
{[%clk 0:01:17.3]} 28. b3 {[%clk 0:00:41.4]} 28... Rxa3 {[%clk 0:01:07.8]} 29.
Rxg7 {[%clk 0:00:41.7]} 29... Ra2 {[%clk 0:01:03.6]} 30. Kd3 {[%clk 0:00:41.5]}
30... Kf6 {[%clk 0:01:03.4]} 31. Rxc7 {[%clk 0:00:39.9]} 31... Ra1 {[%clk
0:01:03.8]} 32. Kxc3 {[%clk 0:00:39]} 32... h5 {[%clk 0:01:03.3]} 33. Rc4 {[%clk
0:00:33.7]} 33... Rg1 {[%clk 0:00:57.8]} 34. g4 {[%clk 0:00:23.3]} 34... Rg3+
{[%clk 0:00:56]} 35. Kb4 {[%clk 0:00:19]} 35... h4 {[%clk 0:00:53.8]} 36. Rc7
{[%clk 0:00:14]} 36... Rxh3 {[%clk 0:00:52.3]} 37. Rxa7 {[%clk 0:00:14]} 37...
Rg3 {[%clk 0:00:52.1]} 38. c4 {[%clk 0:00:14.4]} 38... Rxg4 {[%clk 0:00:49.2]}
39. Ka5 {[%clk 0:00:13.3]} 39... h3 {[%clk 0:00:48.1]} 40. Rh7 {[%clk
0:00:13.3]} 40... Rg5+ {[%clk 0:00:48.2]} 41. Kb6 {[%clk 0:00:11.9]} 41... Rh5
{[%clk 0:00:48.4]} 42. Rxh5 {[%clk 0:00:02.8]} 42... gxh5 {[%clk 0:00:48.6]} 43.
c5 {[%clk 0:00:03.7]} 43... h2 {[%clk 0:00:48.8]} 44. c6 {[%clk 0:00:03.6]}
44... h1=Q {[%clk 0:00:49.7]} 45. b4 {[%clk 0:00:04.5]} 45... Qd5 {[%clk
0:00:48.8]} 46. b5 {[%clk 0:00:04.6]} 46... Ke7 {[%clk 0:00:44.8]} 0-1

[Event "*** Titled Tuesday Blitz"]
[Site "Chess.com"]
[Date "2020.10.20"]
[Round "1"]
[White "Berant"]
[Black "Bulldog167"]
[Result "0-1"]
[WhiteElo "2375"]
[BlackElo "2760"]
[TimeControl "180+1"]
[EndTime "10:07:22 PDT"]
[Termination "Bulldog167 won by resignation"]

1. e4 {[%clk 0:02:57.5]} 1... c5 {[%clk 0:02:59.6]} 2. Nf3 {[%clk 0:02:56.8]}
2... d6 {[%clk 0:02:59]} 3. Bb5+ {[%clk 0:02:55.8]} 3... Nd7 {[%clk 0:02:58.8]}
4. d4 {[%clk 0:02:55.5]} 4... cxd4 {[%clk 0:02:58.7]} 5. Qxd4 {[%clk 0:02:55.4]}
5... a6 {[%clk 0:02:55.5]} 6. Bxd7+ {[%clk 0:02:50.6]} 6... Bxd7 {[%clk
0:02:56.4]} 7. O-O {[%clk 0:02:49.2]} 7... Nf6 {[%clk 0:02:55.4]} 8. a4 {[%clk
0:02:48.8]} 8... e6 {[%clk 0:02:50.9]} 9. c4 {[%clk 0:02:48.4]} 9... Be7 {[%clk
0:02:50.4]} 10. Nc3 {[%clk 0:02:47.7]} 10... O-O {[%clk 0:02:49.4]} 11. Bg5
{[%clk 0:02:40.6]} 11... Rc8 {[%clk 0:02:46.9]} 12. b3 {[%clk 0:02:36]} 12...
Bc6 {[%clk 0:02:43.1]} 13. Rad1 {[%clk 0:02:23.5]} 13... Qa5 {[%clk 0:02:38.5]}
14. Qe3 {[%clk 0:01:45.2]} 14... h6 {[%clk 0:02:04.7]} 15. Bh4 {[%clk
0:01:43.5]} 15... Qh5 {[%clk 0:01:55.3]} 16. Bg3 {[%clk 0:01:41.8]} 16... Rfd8
{[%clk 0:01:50]} 17. Nd5 {[%clk 0:01:23.6]} 17... Bxd5 {[%clk 0:01:09.8]} 18.
exd5 {[%clk 0:01:22.7]} 18... e5 {[%clk 0:01:10.2]} 19. Rfe1 {[%clk 0:01:11]}
19... Ng4 {[%clk 0:01:03.1]} 20. Qe2 {[%clk 0:01:06.8]} 20... f5 {[%clk
0:00:57.4]} 21. h3 {[%clk 0:01:05.1]} 21... Nf6 {[%clk 0:00:54.9]} 22. Nxe5
{[%clk 0:01:02.4]} 22... Qxe2 {[%clk 0:00:52.9]} 23. Rxe2 {[%clk 0:01:01.9]}
23... dxe5 {[%clk 0:00:53.1]} 24. Bxe5 {[%clk 0:01:01.2]} 24... Kf7 {[%clk
0:00:45.5]} 25. d6 {[%clk 0:00:53.7]} 25... Bf8 {[%clk 0:00:45.2]} 26. f4 {[%clk
0:00:52]} 26... Ne4 {[%clk 0:00:43.7]} 27. g4 {[%clk 0:00:49.9]} 27... g6 {[%clk
0:00:41.6]} 28. d7 {[%clk 0:00:43.7]} 28... Rc6 {[%clk 0:00:39]} 29. h4 {[%clk
0:00:38.2]} 29... h5 {[%clk 0:00:38.1]} 30. gxf5 {[%clk 0:00:37.4]} 30... gxf5
{[%clk 0:00:37.3]} 31. Kh2 {[%clk 0:00:37.3]} 31... Be7 {[%clk 0:00:26.9]} 32.
Rd5 {[%clk 0:00:36.9]} 32... Ke6 {[%clk 0:00:24.5]} 33. Bb2 {[%clk 0:00:32.8]}
33... Bd6 {[%clk 0:00:21.7]} 34. Be5 {[%clk 0:00:29.2]} 34... Rxd7 {[%clk
0:00:19.2]} 35. Rg2 {[%clk 0:00:28.7]} 35... Bxe5 {[%clk 0:00:13.8]} 36. Rxe5+
{[%clk 0:00:28.7]} 36... Kf6 {[%clk 0:00:13.8]} 37. Re8 {[%clk 0:00:29.3]} 37...
Rd2 {[%clk 0:00:11.1]} 38. Rf8+ {[%clk 0:00:29.3]} 38... Ke6 {[%clk 0:00:10.6]}
39. Rh8 {[%clk 0:00:27]} 39... Rxg2+ {[%clk 0:00:10.5]} 40. Kxg2 {[%clk
0:00:27.4]} 40... Nf6 {[%clk 0:00:11]} 41. Rc8 {[%clk 0:00:20.1]} 41... Rxc8
{[%clk 0:00:10.7]} 0-1